fUST/lending_fUST_20240709
["ID","MTS","AMOUNT","RATE_DAILY","PERIOD"]
[331534780,1720457442381,-800.0,0.00043835,90]
[331534781,1720457442390,-800.0,0.00043835,90]
[331534783,1720457442398,-800.0,0.00043835,90]
[331534785,1720457442407,-800.0,0.00043835,90]
[331534787,1720457442416,-757.55311267,0.00043835,90]
[331534789,1720457442425,-540.68999889,0.00043954,30]
[331534790,1720457442434,-206.3072956,0.00043972,2]
[331534791,1720457442443,-1000.0,0.00044,44]
[331534792,1720457442451,-540.68999889,0.00044448,30]
[331534793,1720457442460,-153.0,0.00044744,2]
[331534795,1720457442469,-206.3072956,0.00044744,2]
[331534797,1720457442478,-153.0,0.00044744,2]
[331534799,1720457442487,-718.7358259,0.000448,120]
[331534800,1720457442496,-150.77383924,0.00044818,2]
[331534801,1720457442504,-540.68999889,0.00044836,30]
[331534802,1720457442514,-3740.0,0.00045,20]
[331534803,1720457442523,-179.0,0.00045,2]
[331534804,1720457442532,-540.68999889,0.00045239,30]
[331534805,1720457442541,-750.0,0.00045494,2]
[331534806,1720457442550,-153.0,0.00045536,2]
[331534807,1720457442559,-157.57567203,0.00045611,30]
[331534808,1720457442567,-150.0,0.00045761,2]
[331534809,1720457442577,-1405.0,0.00045761,2]
[331534810,1720457442586,-618.99346542,0.000458,30]
[331534811,1720457442595,-157.57567203,0.00045814,30]
[331534813,1720457442605,-157.57567203,0.0004591,30]
[331534814,1720457442613,-7015.22813,0.00046,120]
[331534816,1720457442622,-309.5697723,0.00046317,2]
[331534818,1720457442631,-157.57567203,0.00046364,30]
[331534820,1720457442641,-5479.0,0.00047808,30]
[331534822,1720457442655,-540.68999889,0.00048185,30]
[331534825,1720457442664,-261.0,0.00048499,30]
[331534826,1720457442673,-500.0,0.0004851,30]
[331534828,1720457442683,-500.0,0.0004851,30]
[331534830,1720457442692,-500.0,0.0004851,30]
[331534832,1720457442701,-489.43490949,0.0004851,30]
[331534833,1720457442710,-1200.0,0.000486,120]
[331534834,1720457442721,-1405.0,0.00048761,2]
[331534835,1720457442729,-212.00554518,0.00048767,120]
[331534836,1720457442738,-1001.73593085,0.00048767,120]
[331534837,1720457442747,-1879.96646372,0.000488,120]
[331534838,1720457442755,-4844.92890413,0.00048999,120]
[331534839,1720457442765,-46739.89528303,0.00049,120]
[331534840,1720457442774,-7975.85,0.00049,30]
[331534841,1720457442782,-1678.05,0.00049,30]
[331534842,1720457442791,-357.62,0.00049,30]
[331534843,1720457442800,-70986.60744588,0.00049,2]
[331534844,1720457442816,-489013.39255412,0.00049,2]
[331534845,1720457442826,-1000.0,0.00049,49]
[331534846,1720457442835,-151.0,0.00049,14]
[331534847,1720457442844,-151.0,0.00049,14]
[331534848,1720457442853,-156.744755,0.00049,14]
[331534849,1720457442863,-156.744755,0.00049,14]
[331534850,1720457442872,-1736.827804,0.00049,14]
[331534851,1720457442881,-1736.827804,0.00049,14]
[331534852,1720457442891,-156.744755,0.00049,14]
[331534853,1720457442900,-156.744749,0.00049,14]
[331534854,1720457442909,-1736.827804,0.00049,14]
[331534855,1720457442918,-1736.82781,0.00049,14]
[331534856,1720457442973,-213.05421,0.00049,14]
[331534857,1720457442983,-213.05421,0.00049,14]
[331534858,1720457442992,-213.05421,0.00049,14]
[331534859,1720457443001,-213.054212,0.00049,14]
[331534860,1720457443012,-352.456612,0.00049,14]
[331534861,1720457443021,-352.456619,0.00049,14]
[331534862,1720457443030,-823.55,0.00049315,120]
[331534863,1720457443039,-823.55,0.00049315,120]
[331534864,1720457443048,-823.55,0.00049315,120]
[331534865,1720457443057,-823.55,0.00049315,120]
[331534866,1720457443066,-823.55,0.00049315,120]
[331534867,1720457443075,-823.55,0.00049315,120]
[331534868,1720457443083,-823.55,0.00049315,120]
[331534869,1720457443092,-823.55,0.00049315,120]
[331534870,1720457443101,-823.55,0.00049315,120]
[331534871,1720457443110,-823.55,0.00049315,120]
[331534872,1720457443119,-823.55,0.00049315,120]
[331534873,1720457443128,-823.55,0.00049315,120]
[331534874,1720457443137,-823.55,0.00049315,120]
[331534875,1720457443146,-823.55,0.00049315,120]
[331534876,1720457443155,-823.55,0.00049315,120]
[331534877,1720457443164,-823.55,0.00049315,120]
[331534878,1720457443173,-823.55,0.00049315,120]
[331534879,1720457443182,-823.55,0.00049315,120]
[331534881,1720457443191,-823.55,0.00049315,120]
[331534883,1720457443200,-823.55,0.00049315,120]
[331534885,1720457443209,-823.55,0.00049315,120]
[331534886,1720457443217,-823.55,0.00049315,120]
[331534887,1720457443226,-823.55,0.00049315,120]
[331534888,1720457443235,-823.63521076,0.00049315,120]
[331534889,1720457443243,-5000.0,0.0005,50]
[331534890,1720457443252,-154.57491897,0.0005,30]
[331534891,1720457443262,-158.19643739,0.0005,120]
[331534892,1720457443271,-533.81299865,0.0005,30]
[331534893,1720457443280,-203.6907867,0.0005,120]
[331534894,1720457443289,-2523.76173422,0.0005,14]
[331534895,1720457443298,-819.80404473,0.0005,120]
[331534896,1720457443318,-181.01200662,0.0005,4]
[331534897,1720457443333,-270.54081462,0.0005,2]
[331534898,1720457443352,-169.348681,0.00050068,2]
[331534899,1720457443372,-663.208363,0.00051,85]
[331534900,1720457443392,-151.37713241,0.00051251,10]
[331534901,1720457443409,-540.68999889,0.00051326,60]
[331534902,1720457443427,-160.802042,0.0005141,2]
[331534903,1720457443441,-157.57567203,0.00051517,60]
[331534904,1720457443457,-750.0,0.00051593,2]
[331534905,1720457443476,-1405.0,0.00051761,120]
[331534906,1720457443494,-5000.0,0.00052,52]
[331534907,1720457443505,-999.0,0.00052054,120]
[331534908,1720457443526,-500.0,0.00052055,120]
[331534909,1720457443541,-500.0,0.00052055,120]
[331534910,1720457443557,-500.0,0.00052055,120]
[331534911,1720457443571,-493.862443,0.00052055,120]
[331534912,1720457443584,-230.8762462,0.00052055,2]
[331534913,1720457443599,-3000.0,0.000521,120]
[331534914,1720457443613,-999.0,0.00052465,120]
[331534915,1720457443627,-157.57567203,0.00052519,60]
[331534916,1720457443643,-2879.54544911,0.000528,120]
[331534917,1720457443658,-4501.75547339,0.000528,120]
[331534918,1720457443672,-600.0,0.000528,2]
[331534919,1720457443686,-999.0,0.00052876,120]
[331534920,1720457443701,-3000.0,0.00053037,120]
[331534921,1720457443714,-999.0,0.00053287,120]
[331534922,1720457443729,-197.65516536,0.000533,120]
[331534923,1720457443743,-600.0,0.0005335,2]
[331534924,1720457443756,-540.68999889,0.00053517,60]
[331534925,1720457443771,-999.0,0.00053698,120]
[331534926,1720457443784,-38573.27507943,0.0005388,45]
[331534927,1720457443798,-815.20078301,0.000539,2]
[331534928,1720457443810,-3000.0,0.00053973,120]
[331534929,1720457443818,-5000.0,0.00054,54]
[331534930,1720457443827,-999.0,0.00054109,120]
[331534931,1720457443836,-157.57567203,0.00054481,60]
[331534932,1720457443845,-999.0,0.0005452,120]
[331534933,1720457443854,-4018.62511069,0.000547,120]
[331534934,1720457443960,-1405.0,0.00054761,120]
[331534935,1720457443969,-157.57567203,0.00054768,60]
[331534937,1720457443979,-500.0,0.00054794,120]
[331534939,1720457443988,-500.0,0.00054794,120]
[331534941,1720457443997,-500.0,0.00054794,120]
[331534943,1720457444006,-500.0,0.00054794,120]
[331534945,1720457444017,-500.0,0.00054794,120]
[331534946,1720457444026,-500.0,0.00054794,120]
[331534948,1720457444035,-500.0,0.00054794,120]
[331534950,1720457444044,-500.0,0.00054794,120]
[331534952,1720457444053,-500.0,0.00054794,2]
[331534954,1720457444062,-500.0,0.00054794,120]
[331534955,1720457444071,-500.0,0.00054794,120]
[331534957,1720457444080,-500.0,0.00054794,120]
[331534959,1720457444090,-500.0,0.00054794,120]
[331534960,1720457444100,-500.0,0.00054794,120]
[331534962,1720457444109,-500.0,0.00054794,120]
[331534964,1720457444119,-500.0,0.00054794,120]
[331534966,1720457444128,-500.0,0.00054794,120]
[331534968,1720457444137,-500.0,0.00054794,120]
[331534970,1720457444146,-500.0,0.00054794,120]
[331534971,1720457444155,-500.0,0.00054794,120]
[331534973,1720457444165,-500.0,0.00054794,120]
[331534974,1720457444175,-500.0,0.00054794,120]
[331534975,1720457444184,-500.0,0.00054794,120]
[331534976,1720457444194,-500.0,0.00054794,120]
[331534977,1720457444203,-500.0,0.00054794,120]
[331534978,1720457444213,-500.0,0.00054794,120]
[331534979,1720457444222,-500.0,0.00054794,120]
[331534980,1720457444231,-500.0,0.00054794,120]
[331534981,1720457444242,-500.0,0.00054794,120]
[331534982,1720457444252,-500.0,0.00054794,120]
[331534983,1720457444263,-500.0,0.00054794,120]
[331534984,1720457444274,-500.0,0.00054794,120]
[331534985,1720457444283,-500.0,0.00054794,120]
[331534986,1720457444293,-243.71718355,0.00054794,120]
[331534987,1720457444302,-500.0,0.00054794,2]
[331534988,1720457444312,-994.82,0.00054794,120]
[331534989,1720457444321,-500.0,0.00054794,120]
[331534990,1720457444330,-500.0,0.00054794,120]
[331534991,1720457444339,-500.0,0.00054794,120]
[331534992,1720457444348,-421.63705289,0.00054794,120]
[331534993,1720457444357,-500.0,0.00054794,120]
[331534994,1720457444367,-845.22,0.00054794,120]
[331534995,1720457444375,-845.22,0.00054794,120]
[331534996,1720457444384,-845.22,0.00054794,120]
[331534997,1720457444394,-845.22,0.00054794,120]
[331534998,1720457444403,-845.22,0.00054794,120]
[331534999,1720457444412,-845.22,0.00054794,120]
[331535000,1720457444421,-845.22,0.00054794,120]
[331535001,1720457444430,-845.22,0.00054794,120]
[331535002,1720457444439,-845.22,0.00054794,120]
[331535003,1720457444448,-845.22,0.00054794,120]
[331535004,1720457444458,-845.22,0.00054794,120]
[331535005,1720457444467,-845.22,0.00054794,120]
[331535006,1720457444476,-845.22,0.00054794,120]
[331535007,1720457444484,-845.22,0.00054794,120]
[331535008,1720457444493,-845.22,0.00054794,120]
[331535009,1720457444503,-845.22,0.00054794,120]
[331535010,1720457444515,-845.22,0.00054794,120]
[331535011,1720457444523,-845.22,0.00054794,120]
[331535012,1720457444532,-845.22,0.00054794,120]
[331535013,1720457444541,-845.22,0.00054794,120]
[331535014,1720457444550,-845.22,0.00054794,120]
[331535015,1720457444560,-845.22,0.00054794,120]
[331535016,1720457444570,-845.22,0.00054794,120]
[331535017,1720457444579,-845.44780444,0.00054794,120]
[331535018,1720457444588,-500.0,0.00054794,120]
[331535019,1720457444597,-500.0,0.00054794,120]
[331535020,1720457444607,-500.0,0.00054794,120]
[331535021,1720457444615,-500.0,0.00054794,120]
[331535022,1720457444625,-500.0,0.00054794,120]
[331535023,1720457444634,-500.0,0.00054794,120]
[331535024,1720457444644,-518.3,0.00054794,120]
[331535025,1720457444657,-517.09287822,0.00054794,120]
[331535026,1720457444666,-500.0,0.00054794,120]
[331535027,1720457444676,-766.15,0.00054794,120]
[331535028,1720457444686,-500.0,0.00054794,120]
[331535029,1720457444696,-317.94320063,0.00054794,120]
[331535030,1720457444927,-150.94776271,0.0002532,2]
[331535031,1720457444937,-358.0,0.0002543,2]
[331535032,1720457444946,-360.99814942,0.00027397,2]
[331535033,1720457444957,-139.00185058,0.00027397,2]
[331535034,1720457444966,-191.2914418,0.00027397,2]
[331535035,1720457444977,-308.7085582,0.00027397,2]
[331535036,1720457444986,-500.0,0.00027397,2]
[331535037,1720457444995,-187.05397716,0.00027397,2]
[331535074,1720457446191,-500.84453017,0.00016244,2]
[331535075,1720457446200,-500.0,0.00016254,2]
[331535076,1720457446209,-225.19748892,0.00016254,2]
[331535077,1720457446291,-500.0,0.00016254,2]
[331535078,1720457446301,-35.34915092,0.00016254,2]
[331535079,1720457446313,-464.65084908,0.00016254,2]
[331535080,1720457446323,-1.5170305,0.00027397,2]
[331535081,1720457456048,208.04822449,0.00014999,2]
[331535082,1720457460412,287.42129962,0.00015,2]
[331535083,1720457523767,188.94644421,0.00015,2]
[331535084,1720457530244,293.65330386,0.00015,2]
[331535087,1720457550687,184.90501369,0.00015,2]
[331535088,1720457573401,287.42129962,0.00015,2]
[331535091,1720457658398,287.42129962,0.00015,2]
[331535092,1720457717922,208.80607313,0.00014999,2]
[331535096,1720457767408,385.19721914,0.00015,2]
[331535097,1720457858024,521.06468489,0.00014999,7]
[331535098,1720457884891,1986.97335839,0.00014999,2]
[331535101,1720458014976,658.82266126,0.00014999,2]
[331535106,1720458081608,2119.55983052,0.00014999,2]
[331535114,1720458205383,215.33691159,0.00014999,2]
[331535117,1720458252982,155.0,0.00014999,2]
[331535118,1720458259240,8835.20036484,0.00014999,2]
[331535119,1720458260533,840.24573238,0.00014999,2]
[331535123,1720458282725,181.84215111,0.00014999,2]
[331535124,1720458284983,155.08481732,0.00014999,2]
[331535126,1720458400636,255.26958221,0.00014999,2]
[331535127,1720458402936,1805.78790572,0.00014999,2]
[331535128,1720458422458,155.05395959,0.00014999,2]
[331535130,1720458442748,2420.55776569,0.00015,2]
[331535133,1720458516773,154.91479686,0.00015,2]
[331535134,1720458527468,725.04696611,0.00014999,2]
[331535135,1720458544991,-300.0,0.00015095,2]
[331535137,1720458545026,-300.0,0.00015095,2]
[331535138,1720458545057,-391.50546753,0.00015096,2]
[331535139,1720458545097,-991.50546753,0.00015096,2]
[331535140,1720458545210,-942.41937516,0.00015096,2]
[331535141,1720458570226,-1050.01407374,0.00015096,2]
[331535142,1720458570283,-1050.01407374,0.00015096,2]
[331535143,1720458570347,-853.8737776,0.00015096,2]
[331535144,1720458577972,266.20204977,0.00014999,2]
[331535145,1720458595177,-1109.09211224,0.00015096,2]
[331535146,1720458595230,-1109.09211224,0.00015096,2]
[331535147,1720458595301,-505.9842626,0.00015096,2]
[331535249,1720458633181,-300.0,0.00015095,2]
[331535250,1720458633191,-300.0,0.00015095,2]
[331535251,1720458633201,-16896.49927762,0.00015096,2]
[331535252,1720458633210,-214.9633723,0.00015114,2]
[331535253,1720458633219,-658.816995,0.00015129,2]
[331535254,1720458633227,-217.81662826,0.00016,2]
[331535255,1720458633236,-217.81662824,0.00016,2]
[331535256,1720458633246,-217.81662824,0.00016054,2]
[331535257,1720458633255,-580.11486391,0.00016154,2]
[331535258,1720458633264,-2198.6673782,0.00016154,2]
[331535259,1720458633274,-62424.5384836,0.00016244,2]
[331535260,1720458633284,-36337.16273878,0.00016245,2]
[331535261,1720458634615,2126.99307263,0.00014999,2]
[331535297,1720458638076,-88511.91422822,0.00016245,2]
[331535298,1720458638087,-1000.0,0.00016253,10]
[331535299,1720458638097,-351.85234808,0.00016253,2]
[331535300,1720458638108,-500.0,0.00016253,2]
[331535301,1720458638119,-500.0,0.00016253,2]
[331535302,1720458638129,-500.0,0.00016253,2]
[331535303,1720458638141,-500.0,0.00016253,2]
[331535304,1720458638152,-326.48717267,0.00016253,2]
[331535305,1720458638162,-500.0,0.00016253,2]
[331535306,1720458638171,-534.92059988,0.00016253,2]
[331535307,1720458638181,-190.31154709,0.00016253,2]
[331535308,1720458638192,-500.0,0.00016253,2]
[331535309,1720458638202,-630.43764901,0.00016253,2]
[331535310,1720458638212,-518.70878673,0.00016253,2]
[331535311,1720458638221,-500.0,0.00016253,2]
[331535312,1720458638231,-500.0,0.00016253,2]
[331535313,1720458638241,-57236.72220273,0.00016254,2]
[331535314,1720458638325,-42242.98525417,0.00016255,2]
[331535315,1720458638335,-34942.66333554,0.00016255,2]
[331535316,1720458638345,-17253.08901251,0.00016255,2]
[331535317,1720458638354,-166.666666,0.00016438,2]
[331535318,1720458638364,-420.0,0.00016519,2]
[331535319,1720458638374,-420.0,0.00016605,2]
[331535320,1720458638384,-166.666666,0.00016823,2]
[331535321,1720458638395,-276.57925528,0.0001683,2]
[331535322,1720458638405,-166.666666,0.00017208,2]
[331535323,1720458638416,-166.666666,0.00017592,2]
[331535324,1720458638427,-166.666666,0.00017977,2]
[331535325,1720458638437,-1040.79049023,0.00018,2]
[331535326,1720458638447,-204.93648597,0.00018,2]
[331535327,1720458638456,-587.0,0.00018077,2]
[331535328,1720458638466,-2124.30480026,0.0001818,2]
[331535329,1720458638475,-587.0,0.00018265,2]
[331535330,1720458638485,-166.666666,0.00018362,2]
[331535331,1720458638496,-2198.66737818,0.00018389,2]
[331535332,1720458638506,-191.07976262,0.00018798,2]
[331535333,1720458638516,-7147.4257664,0.000189,2]
[331535334,1720458638526,-812.92138686,0.00019039,3]
[331535335,1720458638537,-197.26562919,0.00019039,2]
[331535336,1720458638547,-250.0,0.00019041,2]
[331535337,1720458638556,-160.126234,0.00019178,2]
[331535338,1720458638570,-160.802042,0.00019178,2]
[331535339,1720458638579,-823.0,0.00019783,2]
[331535340,1720458638589,-225.66798593,0.0002,2]
[331535341,1720458638599,-155.0246491,0.0002,2]
[331535342,1720458638608,-155.1865506,0.0002,2]
[331535343,1720458638618,-151.28821919,0.0002,2]
[331535344,1720458638628,-435.0,0.0002,2]
[331535345,1720458638638,-293.21931504,0.0002,2]
[331535346,1720458638649,-373.7955816,0.0002,2]
[331535347,1720458638659,-155.40087376,0.0002,2]
[331535348,1720458638670,-155.40087376,0.0002,2]
[331535349,1720458638680,-823.0,0.00020091,2]
[331535350,1720458638690,-163.691083,0.00020454,2]
[331535351,1720458638701,-2198.66737818,0.00020624,2]
[331535352,1720458638711,-241.98105013,0.00020893,2]
[331535353,1720458638721,-1151.78036663,0.00021,2]
[331535354,1720458638731,-175.402302,0.00021096,2]
[331535355,1720458638741,-654.879237,0.00021096,2]
[331535356,1720458638751,-706.0,0.00021649,2]
[331535357,1720458638761,-1065.44743963,0.00021917,2]
[331535358,1720458638771,-62424.5384836,0.0002199,3]
[331535359,1720458638781,-11237.42818872,0.00022,2]
[331535360,1720458638791,-376.04496946,0.00022,2]
[331535361,1720458638802,-646.58901833,0.0002205,2]
[331535362,1720458638816,-1152.0,0.00022101,2]
[331535363,1720458638827,-879.88946066,0.00022278,2]
[331535364,1720458638837,-11111.35069313,0.00022579,2]
[331535365,1720458638847,-658.816995,0.00022694,2]
[331535366,1720458638857,-2198.66737818,0.00022859,2]
[331535367,1720458638867,-200.0,0.00023,2]
[331535368,1720458638877,-621.32945092,0.00023153,2]
[331535369,1720458638887,-7147.4257664,0.000239,2]
[331535370,1720458638897,-1000.0,0.00024,24]
[331535371,1720458638907,-620.06647255,0.0002431,2]
[331535372,1720458638916,-1613.0,0.00024311,2]
[331535373,1720458638926,-150.0,0.00024538,2]
[331535374,1720458638937,-62424.5384836,0.0002454,3]
[331535375,1720458638947,-86063.94449187,0.0002455,2]
[331535376,1720458638957,-6862.14140497,0.00024556,2]
[331535377,1720458638968,-428.141796,0.00024556,2]
[331535378,1720458638978,-763.61573457,0.00024556,2]
[331535379,1720458638988,-2180.8178169,0.00024556,30]
[331535380,1720458638998,-4175.08419199,0.00024556,2]
[331535381,1720458639007,-200.0,0.00024658,15]
[331535382,1720458639018,-380.0,0.00024658,2]
[331535383,1720458639028,-88888.0,0.000249,3]
[331535384,1720458639039,-189.17055998,0.00025,2]
[331535385,1720458639054,-154.77557542,0.00025,2]
[331535386,1720458639069,-190.62597405,0.00025,2]
[331535387,1720458639079,-313061.75886382,0.00025,2]
[331535388,1720458639091,-250.30001953,0.00025086,2]
[331535389,1720458639102,-2198.66737818,0.00025094,2]
[331535390,1720458639113,-100052.99756641,0.00025204,2]
[331535391,1720458639123,-619.99999999,0.00025463,2]
[331535392,1720458639134,-620.00332363,0.00025526,2]
[331535393,1720458639145,-2214.0,0.00026742,2]
[331535394,1720458639156,-620.00016618,0.00026802,2]
[331535395,1720458639166,-163.9178479,0.00027123,2]
[331535396,1720458639177,-175.402302,0.00027195,2]
[331535397,1720458639187,-654.879237,0.00027195,2]
[331535398,1720458639198,-500.0,0.00027397,2]
[331535399,1720458639208,-500.0,0.00027397,2]
[331535400,1720458639219,-500.0,0.00027397,2]
[331535401,1720458639229,-204.35658987,0.00027397,2]
[331535402,1720458639239,-500.0,0.00027397,2]
[331535403,1720458639250,-500.0,0.00027397,2]
[331535404,1720458639260,-500.0,0.00027397,2]
[331535405,1720458639270,-500.0,0.00027397,2]
[331535406,1720458639280,-500.0,0.00027397,2]
[331535407,1720458639291,-500.0,0.00027397,2]
[331535408,1720458639301,-500.0,0.00027397,2]
[331535409,1720458639317,-500.0,0.00027397,2]
[331535410,1720458639327,-500.0,0.00027397,2]
[331535411,1720458639336,-500.0,0.00027397,2]
[331535412,1720458639346,-500.0,0.00027397,2]
[331535413,1720458639355,-482.81580918,0.00027397,2]
[331535414,1720458639365,-500.0,0.00027397,2]
[331535415,1720458639433,-500.0,0.00027397,2]
[331535416,1720458639444,-500.0,0.00027397,2]
[331535417,1720458639454,-500.0,0.00027397,2]
[331535418,1720458639464,-500.0,0.00027397,2]
[331535419,1720458639475,-500.0,0.00027397,2]
[331535420,1720458639485,-500.0,0.00027397,2]
[331535421,1720458639495,-500.0,0.00027397,2]
[331535422,1720458639505,-500.0,0.00027397,2]
[331535423,1720458639514,-500.0,0.00027397,2]
[331535424,1720458639524,-176.26175687,0.000274,2]
[331535425,1720458639535,-268.36537859,0.00028,2]
[331535426,1720458639545,-620.00000831,0.00028142,2]
[331535427,1720458639555,-7147.4257664,0.000289,2]
[331535428,1720458639567,-1000.0,0.00029,29]
[331535429,1720458639576,-620.00000042,0.00029549,2]
[331535430,1720458639586,-284.48602988,0.0003,3]
[331535431,1720458639596,-170.41373926,0.0003,4]
[331535433,1720458639606,-213.0,0.0003,2]
[331535434,1720458639616,-30000.0,0.00030103,2]
[331535435,1720458639625,-160.802042,0.00030594,2]
[331535436,1720458639635,-150.0,0.00030971,2]
[331535437,1720458639644,-1405.0,0.0003098,2]
[331535438,1720458639654,-620.00000002,0.00031027,2]
[331535439,1720458639663,-620.0,0.00032578,2]
[331535440,1720458639673,-150.0,0.00032877,2]
[331535441,1720458639682,-213.0,0.00033,2]
[331535442,1720458639692,-213.0,0.00033,2]
[331535443,1720458639703,-175.402302,0.00033295,2]
[331535444,1720458639712,-654.879237,0.00033295,2]
[331535445,1720458639722,-150.0,0.00033971,2]
[331535446,1720458639732,-1405.0,0.0003398,2]
[331535447,1720458639742,-620.0,0.00034207,2]
[331535448,1720458639752,-261.0,0.000348,3]
[331535449,1720458639763,-1000.0,0.000348,3]
[331535450,1720458639774,-1662.013679,0.00035,4]
[331535451,1720458639784,-1411.68404694,0.00035,30]
[331535452,1720458639794,-151.0,0.00035616,7]
[331535453,1720458639804,-151.0,0.00035616,7]
[331535454,1720458639817,-39066.97,0.00035616,3]
[331535455,1720458639827,-620.0,0.00035917,2]
[331535456,1720458639838,-213.0,0.00036,2]
[331535457,1720458639848,-213.0,0.00036,2]
[331535458,1720458639858,-213.0,0.00036,2]
[331535459,1720458639868,-150.0,0.00036971,2]
[331535460,1720458639878,-1405.0,0.0003698,2]
[331535461,1720458639888,-620.0,0.00037713,2]
[331535462,1720458639897,-756.13182,0.000385,27]
[331535463,1720458639907,-525.6,0.000387,62]
[331535464,1720458639917,-160.126234,0.00038748,2]
[331535465,1720458639927,-1000.0,0.00039,39]
[331535466,1720458639936,-213.0,0.00039,2]
[331535467,1720458639945,-213.0,0.00039,2]
[331535469,1720458639955,-213.0,0.00039,2]
[331535471,1720458639965,-250.53109566,0.000392,10]
[331535473,1720458639975,-175.402302,0.00039394,2]
[331535474,1720458639984,-654.879237,0.00039394,2]
[331535476,1720458639994,-183.53241814,0.0003988,120]
[331535478,1720458640003,-150.0,0.00039971,2]
[331535480,1720458640013,-1405.0,0.0003998,2]
[331535482,1720458640022,-666233.43653,0.00039999,14]
[331535484,1720458640031,-154.77557542,0.0004,4]
[331535486,1720458640041,-7000.1,0.0004,14]
[331535488,1720458640055,-10000.0,0.0004,30]
[331535490,1720458640067,-316.87705291,0.0004,120]
[331535492,1720458640076,-9779.10702914,0.00040599,20]
[331535494,1720458640085,-179.1923836,0.00041096,2]
[331535496,1720458640096,-213.0,0.00042,2]
[331535498,1720458640105,-213.0,0.00042,2]
[331535500,1720458640115,-160.802042,0.00042009,2]
[331535502,1720458640126,-200.0,0.00042466,2]
[331535504,1720458640138,-150.0,0.00042971,2]
[331535506,1720458640148,-1405.0,0.0004298,2]
[331535509,1720458640158,-2040.34238499,0.00043,120]
[331535510,1720458640167,-504.64399896,0.00043024,30]
[331535512,1720458640177,-504.64399896,0.0004313,30]
[331535515,1720458640186,-157.57567203,0.0004333,30]
[331535516,1720458640198,-504.64399896,0.00043616,30]
[331535518,1720458640207,-504.64399896,0.00043817,30]
[331535520,1720458640217,-800.0,0.00043835,90]
[331535522,1720458640226,-800.0,0.00043835,90]
[331535524,1720458640235,-800.0,0.00043835,90]
[331535526,1720458640245,-800.0,0.00043835,90]
[331535528,1720458640254,-800.0,0.00043835,90]
[331535530,1720458640263,-800.0,0.00043835,90]
[331535532,1720458640272,-800.0,0.00043835,90]
[331535534,1720458640281,-757.55311267,0.00043835,90]
[331535537,1720458640291,-504.64399896,0.00044387,30]
[331535538,1720458640300,-150.77383924,0.00044846,2]
[331535541,1720458640311,-504.64399896,0.00044891,30]
[331535543,1720458640324,-157.57567203,0.00044929,30]
[331535545,1720458640334,-3740.0,0.00045,20]
[331535547,1720458640343,-9799.94519237,0.00045,120]
[331535549,1720458640353,-213.0,0.00045,2]
[331535556,1720458640415,-157.57567203,0.00045392,30]
[331535558,1720458640425,-175.402302,0.00045494,2]
[331535560,1720458640435,-654.879237,0.00045494,2]
[331535562,1720458640444,-153.0,0.00045594,2]
[331535564,1720458640453,-153.0,0.00045594,2]
[331535566,1720458640462,-153.0,0.00045594,2]
[331535568,1720458640472,-153.0,0.00045594,2]
[331535570,1720458640481,-153.0,0.00045731,2]
[331535572,1720458640490,-306.0,0.00045731,2]
[331535574,1720458640500,-306.0,0.00045731,2]
[331535576,1720458640509,-309.5697723,0.00045731,2]